[Event "Titled Tuesday Blitz December 27 Late 2022"]
[White "Grekh, Andrey"]
[Black "Jimenez Fernandez, Rebeca"]
[WhiteFideId "14112418"]
[BlackFideId "32070934"]
[WhiteElo "2393"]
[BlackElo "2069"]
[Result "1-0"]
[Round "02"]
[TimeControl "180+2"]
[Date "2022.12.27"]
[WhiteClock "0:00:17"]
[BlackClock "0:00:11"]

1. e4 {[%clk 0:03:00]}  c5 {[%clk 0:02:59]} 2. Nc3 {[%clk 0:02:59]}  Nc6 {[%clk 0:02:59]} 3. Bb5 {[%clk 0:02:58]}  Nd4 {[%clk 0:02:57]} 4. Nf3 {[%clk 0:02:59]}  g6 {[%clk 0:02:50]} 5. O-O {[%clk 0:02:58]}  Bg7 {[%clk 0:02:50]} 6. Nxd4 {[%clk 0:02:58]}  cxd4 {[%clk 0:02:50]} 7. Ne2 {[%clk 0:02:59]}  e6 {[%clk 0:02:47]} 8. d3 {[%clk 0:02:57]}  a6 {[%clk 0:02:46]} 9. Bc4 {[%clk 0:02:55]}  b5 {[%clk 0:02:45]} 10. Bb3 {[%clk 0:02:55]}  Ne7 {[%clk 0:02:46]} 11. f4 {[%clk 0:02:55]}  Bb7 {[%clk 0:02:45]} 12. a4 {[%clk 0:02:46]}  d5 {[%clk 0:02:43]} 13. e5 {[%clk 0:02:43]}  Nf5 {[%clk 0:02:36]} 14. g4 {[%clk 0:02:39]}  Ne3 {[%clk 0:02:35]} 15. Bxe3 {[%clk 0:02:39]}  dxe3 {[%clk 0:02:36]} 16. d4 {[%clk 0:02:39]}  Qh4 {[%clk 0:02:10]} 17. Ng3 {[%clk 0:02:38]}  b4 {[%clk 0:01:54]} 18. Qe2 {[%clk 0:02:18]}  O-O {[%clk 0:01:35]} 19. Rad1 {[%clk 0:02:09]}  a5 {[%clk 0:01:35]} 20. Qxe3 {[%clk 0:01:45]}  Qxg4 {[%clk 0:01:32]} 21. Rde1 {[%clk 0:01:42]}  h5 {[%clk 0:01:12]} 22. Kh1 {[%clk 0:01:34]}  Bh6 {[%clk 0:01:07]} 23. c3 {[%clk 0:01:20]}  Ba6 {[%clk 0:00:57]} 24. Rf2 {[%clk 0:01:16]}  Rab8 {[%clk 0:00:52]} 25. Bd1 {[%clk 0:01:13]}  Qh4 {[%clk 0:00:48]} 26. Rg1 {[%clk 0:01:06]}  bxc3 {[%clk 0:00:41]} 27. bxc3 {[%clk 0:01:01]}  Rb1 {[%clk 0:00:39]} 28. Qf3 {[%clk 0:00:52]}  Kh7 {[%clk 0:00:31]} 29. Bc2 {[%clk 0:00:36]}  Rxg1+ {[%clk 0:00:22]} 30. Kxg1 {[%clk 0:00:37]}  Kg7 {[%clk 0:00:17]} 31. Rg2 {[%clk 0:00:31]}  Rb8 {[%clk 0:00:15]} 32. Nxh5+ {[%clk 0:00:30]}  Kh7 {[%clk 0:00:13]} 33. Nf6+ {[%clk 0:00:30]}  Kg7 {[%clk 0:00:13]} 34. Qg3 {[%clk 0:00:18]}  Qxf4 {[%clk 0:00:11]} 35. Nh5+ {[%clk 0:00:17]} 1-0


[Site "https://www.chess.com"]

[Event "Titled Tuesday Blitz December 27 Late 2022"]
[White "Guevara Sanchez, Erick Marvin"]
[Black "Quinones Garcia, Santiago"]
[WhiteFideId "6700136"]
[BlackFideId "4408497"]
[WhiteElo "2073"]
[BlackElo "2248"]
[Result "1-0"]
[Round "02"]
[TimeControl "180+2"]
[Date "2022.12.27"]
[WhiteClock "0:00:30"]
[BlackClock "0:00:02"]

1. e4 {[%clk 0:03:00]}  e5 {[%clk 0:02:55]} 2. Nf3 {[%clk 0:03:00]}  Nc6 {[%clk 0:02:55]} 3. Bc4 {[%clk 0:03:01]}  Nf6 {[%clk 0:02:55]} 4. d3 {[%clk 0:03:00]}  Be7 {[%clk 0:02:55]} 5. c3 {[%clk 0:03:01]}  O-O {[%clk 0:02:55]} 6. O-O {[%clk 0:03:01]}  d5 {[%clk 0:02:55]} 7. exd5 {[%clk 0:03:00]}  Nxd5 {[%clk 0:02:56]} 8. Bb3 {[%clk 0:03:00]}  Be6 {[%clk 0:02:55]} 9. Re1 {[%clk 0:02:59]}  Bf6 {[%clk 0:02:49]} 10. Bc2 {[%clk 0:02:59]}  g6 {[%clk 0:02:48]} 11. Nbd2 {[%clk 0:02:59]}  Bg7 {[%clk 0:02:48]} 12. Ne4 {[%clk 0:02:57]}  Qe7 {[%clk 0:02:46]} 13. Bg5 {[%clk 0:02:55]}  f6 {[%clk 0:02:45]} 14. Bd2 {[%clk 0:02:54]}  Rad8 {[%clk 0:02:45]} 15. h3 {[%clk 0:02:50]}  h6 {[%clk 0:02:44]} 16. Ng3 {[%clk 0:02:50]}  f5 {[%clk 0:02:43]} 17. Qe2 {[%clk 0:02:42]}  Rfe8 {[%clk 0:02:38]} 18. Rad1 {[%clk 0:02:39]}  Nf4 {[%clk 0:02:31]} 19. Bxf4 {[%clk 0:02:28]}  exf4 {[%clk 0:02:32]} 20. Nf1 {[%clk 0:02:27]}  Qf7 {[%clk 0:02:25]} 21. Qd2 {[%clk 0:02:25]}  Bxa2 {[%clk 0:02:24]} 22. d4 {[%clk 0:02:23]}  Bd5 {[%clk 0:02:21]} 23. N1h2 {[%clk 0:02:16]}  Be4 {[%clk 0:02:20]} 24. Bd3 {[%clk 0:02:12]}  Qd5 {[%clk 0:02:15]} 25. c4 {[%clk 0:02:07]}  Qf7 {[%clk 0:02:10]} 26. d5 {[%clk 0:02:07]}  Ne5 {[%clk 0:01:50]} 27. Nxe5 {[%clk 0:01:52]}  Bxe5 {[%clk 0:01:45]} 28. Bxe4 {[%clk 0:01:50]}  fxe4 {[%clk 0:01:44]} 29. Rxe4 {[%clk 0:01:49]}  Bd6 {[%clk 0:01:33]} 30. Rde1 {[%clk 0:01:46]}  h5 {[%clk 0:01:25]} 31. Qe2 {[%clk 0:01:43]}  Rxe4 {[%clk 0:01:21]} 32. Qxe4 {[%clk 0:01:44]}  Rf8 {[%clk 0:01:19]} 33. Nf3 {[%clk 0:01:43]}  Qf5 {[%clk 0:01:19]} 34. Qe6+ {[%clk 0:01:42]}  Qxe6 {[%clk 0:01:18]} 35. Rxe6 {[%clk 0:01:43]}  Kg7 {[%clk 0:01:17]} 36. Ng5 {[%clk 0:01:37]}  Rf5 {[%clk 0:01:09]} 37. Ne4 {[%clk 0:01:35]}  Re5 {[%clk 0:01:00]} 38. Rxe5 {[%clk 0:01:15]}  Bxe5 {[%clk 0:01:00]} 39. b4 {[%clk 0:01:11]}  Kf7 {[%clk 0:00:47]} 40. Kf1 {[%clk 0:01:09]}  Bd6 {[%clk 0:00:32]} 41. c5 {[%clk 0:00:52]}  Be7 {[%clk 0:00:25]} 42. Ke2 {[%clk 0:00:52]}  b6 {[%clk 0:00:20]} 43. Kd3 {[%clk 0:00:50]}  bxc5 {[%clk 0:00:11]} 44. bxc5 {[%clk 0:00:51]}  Ke8 {[%clk 0:00:12]} 45. Kc4 {[%clk 0:00:51]}  a6 {[%clk 0:00:12]} 46. Kb4 {[%clk 0:00:51]}  Bd8 {[%clk 0:00:04]} 47. c6 {[%clk 0:00:31]}  Bf6 {[%clk 0:00:02]} 48. Nxf6+ {[%clk 0:00:30]}  Kf7 {[%clk 0:00:02]} 49. Ne4 {[%clk 0:00:30]} 1-0


[Site "https://www.chess.com"]

[Event "Titled Tuesday Blitz December 27 Late 2022"]
[White "Gurevich, Dmitry"]
[Black "Movahed, Sina"]
[WhiteFideId "2000407"]
[BlackFideId "42520835"]
[WhiteElo "2393"]
[BlackElo "2340"]
[Result "0-1"]
[Round "02"]
[TimeControl "180+2"]
[Date "2022.12.27"]
[WhiteClock "0:00:16"]
[BlackClock "0:01:27"]

1. d4 {[%clk 0:03:00]}  Nf6 {[%clk 0:02:59]} 2. c4 {[%clk 0:03:00]}  g6 {[%clk 0:03:00]} 3. Nc3 {[%clk 0:03:00]}  Bg7 {[%clk 0:03:01]} 4. e4 {[%clk 0:03:00]}  d6 {[%clk 0:03:01]} 5. Nf3 {[%clk 0:03:00]}  O-O {[%clk 0:03:02]} 6. Be2 {[%clk 0:03:00]}  e5 {[%clk 0:03:02]} 7. O-O {[%clk 0:02:59]}  exd4 {[%clk 0:03:03]} 8. Nxd4 {[%clk 0:02:59]}  Re8 {[%clk 0:03:04]} 9. f3 {[%clk 0:02:59]}  c6 {[%clk 0:03:05]} 10. Kh1 {[%clk 0:02:57]}  Nbd7 {[%clk 0:03:05]} 11. Bg5 {[%clk 0:02:55]}  Qb6 {[%clk 0:03:05]} 12. Nb3 {[%clk 0:02:51]}  a5 {[%clk 0:03:06]} 13. Qd2 {[%clk 0:02:37]}  a4 {[%clk 0:03:04]} 14. Nc1 {[%clk 0:02:20]}  a3 {[%clk 0:02:59]} 15. b3 {[%clk 0:02:15]}  d5 {[%clk 0:02:58]} 16. Be3 {[%clk 0:02:00]}  Qa5 {[%clk 0:02:56]} 17. cxd5 {[%clk 0:01:48]}  Nxd5 {[%clk 0:02:43]} 18. Nxd5 {[%clk 0:01:37]}  cxd5 {[%clk 0:02:42]} 19. Qxa5 {[%clk 0:01:26]}  Rxa5 {[%clk 0:02:43]} 20. Rb1 {[%clk 0:01:14]}  dxe4 {[%clk 0:02:42]} 21. fxe4 {[%clk 0:01:12]}  Rxe4 {[%clk 0:02:40]} 22. Bd2 {[%clk 0:01:11]}  Rc5 {[%clk 0:02:34]} 23. Bf3 {[%clk 0:01:09]}  Re8 {[%clk 0:02:31]} 24. Bb4 {[%clk 0:01:07]}  Rc2 {[%clk 0:02:31]} 25. Bxa3 {[%clk 0:01:07]}  Ne5 {[%clk 0:02:09]} 26. Be4 {[%clk 0:01:02]}  Rd2 {[%clk 0:02:09]} 27. Bb2 {[%clk 0:00:43]}  Ng4 {[%clk 0:02:02]} 28. Bxg7 {[%clk 0:00:41]}  Rxe4 {[%clk 0:01:48]} 29. Bc3 {[%clk 0:00:34]}  Rc2 {[%clk 0:01:47]} 30. Ba5 {[%clk 0:00:31]}  b6 {[%clk 0:01:46]} 31. Be1 {[%clk 0:00:28]}  Bb7 {[%clk 0:01:45]} 32. Nd3 {[%clk 0:00:20]}  Ree2 {[%clk 0:01:42]} 33. Nf4 {[%clk 0:00:19]}  Rxg2 {[%clk 0:01:26]} 34. Nxg2 {[%clk 0:00:16]}  Rxg2 {[%clk 0:01:27]} 0-1


[Site "https://www.chess.com"]

[Event "Titled Tuesday Blitz December 27 Late 2022"]
[White "Hernandez Jimenez, Alexander Andres"]
[Black "Moreno Perez, Tobias Sebastian"]
[WhiteFideId "3900452"]
[BlackFideId "186716"]
[WhiteElo "2134"]
[BlackElo "2256"]
[Result "0-1"]
[Round "02"]
[TimeControl "180+2"]
[Date "2022.12.27"]
[WhiteClock "0:00:03"]
[BlackClock "0:00:30"]

1. e4 {[%clk 0:02:50]}  Nc6 {[%clk 0:02:58]} 2. Nf3 {[%clk 0:02:49]}  d6 {[%clk 0:02:57]} 3. d4 {[%clk 0:02:48]}  Nf6 {[%clk 0:02:57]} 4. Nc3 {[%clk 0:02:48]}  g6 {[%clk 0:02:57]} 5. g3 {[%clk 0:02:46]}  Bg7 {[%clk 0:02:57]} 6. Bg2 {[%clk 0:02:46]}  O-O {[%clk 0:02:58]} 7. O-O {[%clk 0:02:46]}  e5 {[%clk 0:02:59]} 8. d5 {[%clk 0:02:33]}  Ne7 {[%clk 0:02:58]} 9. h3 {[%clk 0:02:31]}  Ne8 {[%clk 0:02:58]} 10. g4 {[%clk 0:02:22]}  f5 {[%clk 0:02:54]} 11. exf5 {[%clk 0:02:18]}  gxf5 {[%clk 0:02:55]} 12. Ng5 {[%clk 0:02:17]}  fxg4 {[%clk 0:02:48]} 13. hxg4 {[%clk 0:02:08]}  Ng6 {[%clk 0:02:44]} 14. Ne6 {[%clk 0:02:06]}  Bxe6 {[%clk 0:02:32]} 15. dxe6 {[%clk 0:02:06]}  Nf4 {[%clk 0:02:29]} 16. Bxf4 {[%clk 0:02:02]}  Rxf4 {[%clk 0:02:30]} 17. e7 {[%clk 0:01:36]}  Qc8 {[%clk 0:02:17]} 18. Qd5+ {[%clk 0:01:32]}  Kh8 {[%clk 0:02:17]} 19. Qxb7 {[%clk 0:01:31]}  Qxb7 {[%clk 0:02:18]} 20. Bxb7 {[%clk 0:01:30]}  Rb8 {[%clk 0:02:19]} 21. Bc6 {[%clk 0:01:25]}  Rxg4+ {[%clk 0:02:18]} 22. Kh2 {[%clk 0:01:22]}  Nf6 {[%clk 0:01:25]} 23. Nd5 {[%clk 0:01:17]}  Nxd5 {[%clk 0:01:20]} 24. e8=Q+ {[%clk 0:01:14]}  Rxe8 {[%clk 0:01:20]} 25. Bxe8 {[%clk 0:01:14]}  e4 {[%clk 0:01:15]} 26. Rg1 {[%clk 0:00:59]}  Be5+ {[%clk 0:01:07]} 27. Kh3 {[%clk 0:00:59]}  Rf4 {[%clk 0:01:03]} 28. Bc6 {[%clk 0:00:36]}  Rf3+ {[%clk 0:01:01]} 29. Kg2 {[%clk 0:00:36]}  Nf4+ {[%clk 0:00:58]} 30. Kf1 {[%clk 0:00:36]}  Bd4 {[%clk 0:00:59]} 31. Rg4 {[%clk 0:00:15]}  Rxf2+ {[%clk 0:00:56]} 32. Ke1 {[%clk 0:00:16]}  Ng2+ {[%clk 0:00:53]} 33. Kd1 {[%clk 0:00:11]}  Ne3+ {[%clk 0:00:34]} 34. Ke1 {[%clk 0:00:11]}  Nxg4 {[%clk 0:00:35]} 35. Bxe4 {[%clk 0:00:05]}  Nh2 {[%clk 0:00:29]} 36. Rd1 {[%clk 0:00:04]}  Rf1+ {[%clk 0:00:29]} 37. Kd2 {[%clk 0:00:03]}  Rxd1+ {[%clk 0:00:30]} 38. Kxd1 {[%clk 0:00:03]}  Bxb2 {[%clk 0:00:30]} 0-1


[Site "https://www.chess.com"]

[Event "Titled Tuesday Blitz December 27 Late 2022"]
[White "Holt, Conrad"]
[Black "Ballester Llagaria, Luis Eduardo"]
[WhiteFideId "2034387"]
[BlackFideId "2297620"]
[WhiteElo "2540"]
[BlackElo "2298"]
[Result "1-0"]
[Round "02"]
[TimeControl "180+2"]
[Date "2022.12.27"]
[WhiteClock "0:01:37"]
[BlackClock "0:00:49"]

1. d4 {[%clk 0:03:00]}  d5 {[%clk 0:02:58]} 2. c4 {[%clk 0:03:00]}  dxc4 {[%clk 0:02:59]} 3. e3 {[%clk 0:02:58]}  Nf6 {[%clk 0:02:59]} 4. Bxc4 {[%clk 0:02:58]}  e6 {[%clk 0:03:00]} 5. Nf3 {[%clk 0:02:59]}  a6 {[%clk 0:03:01]} 6. O-O {[%clk 0:02:57]}  b5 {[%clk 0:03:01]} 7. Be2 {[%clk 0:02:52]}  Bb7 {[%clk 0:03:02]} 8. a4 {[%clk 0:02:51]}  b4 {[%clk 0:03:02]} 9. Ne5 {[%clk 0:02:46]}  c5 {[%clk 0:02:47]} 10. Bf3 {[%clk 0:02:43]}  Bxf3 {[%clk 0:02:47]} 11. Qxf3 {[%clk 0:02:43]}  Qd5 {[%clk 0:02:48]} 12. Nd2 {[%clk 0:02:42]}  Qxf3 {[%clk 0:02:19]} 13. Ndxf3 {[%clk 0:02:40]}  Nbd7 {[%clk 0:02:14]} 14. Rd1 {[%clk 0:02:13]}  Be7 {[%clk 0:01:59]} 15. Nc4 {[%clk 0:02:03]}  O-O {[%clk 0:01:54]} 16. Bd2 {[%clk 0:02:02]}  Rac8 {[%clk 0:01:48]} 17. Rac1 {[%clk 0:01:58]}  Ne4 {[%clk 0:01:33]} 18. Be1 {[%clk 0:01:58]}  cxd4 {[%clk 0:01:30]} 19. Nxd4 {[%clk 0:01:54]}  Ndc5 {[%clk 0:01:26]} 20. Bxb4 {[%clk 0:01:42]}  Rb8 {[%clk 0:01:09]} 21. Nc6 {[%clk 0:01:41]}  Rxb4 {[%clk 0:01:01]} 22. Nxb4 {[%clk 0:01:40]}  Nb3 {[%clk 0:00:53]} 23. Nc6 {[%clk 0:01:40]}  Bf6 {[%clk 0:00:54]} 24. Rc2 {[%clk 0:01:38]}  Rc8 {[%clk 0:00:54]} 25. Nb6 {[%clk 0:01:37]}  Rc7 {[%clk 0:00:49]} 26. Ne7+ {[%clk 0:01:37]} 1-0


[Site "https://www.chess.com"]

[Event "Titled Tuesday Blitz December 27 Late 2022"]
[White "Jenkins, Drake"]
[Black "Jaracz, Pawel"]
[WhiteFideId "2022397"]
[BlackFideId "1102222"]
[WhiteElo "2130"]
[BlackElo "2467"]
[Result "0-1"]
[Round "02"]
[TimeControl "180+2"]
[Date "2022.12.27"]
[WhiteClock "0:00:08"]
[BlackClock "0:00:49"]

1. Nf3 {[%clk 0:03:00]}  b5 {[%clk 0:02:58]} 2. g3 {[%clk 0:03:00]}  Bb7 {[%clk 0:02:57]} 3. Bg2 {[%clk 0:03:00]}  e6 {[%clk 0:02:58]} 4. O-O {[%clk 0:03:00]}  Nf6 {[%clk 0:02:57]} 5. d3 {[%clk 0:03:00]}  d5 {[%clk 0:02:55]} 6. a3 {[%clk 0:02:56]}  Be7 {[%clk 0:02:54]} 7. c4 {[%clk 0:02:56]}  a6 {[%clk 0:02:36]} 8. Nbd2 {[%clk 0:02:41]}  O-O {[%clk 0:02:35]} 9. b4 {[%clk 0:02:40]}  Nbd7 {[%clk 0:02:10]} 10. Bb2 {[%clk 0:02:40]}  Nb6 {[%clk 0:02:08]} 11. Rc1 {[%clk 0:02:27]}  Na4 {[%clk 0:02:05]} 12. Ba1 {[%clk 0:02:26]}  a5 {[%clk 0:01:52]} 13. c5 {[%clk 0:02:17]}  axb4 {[%clk 0:01:49]} 14. axb4 {[%clk 0:02:18]}  c6 {[%clk 0:01:41]} 15. Nb3 {[%clk 0:02:12]}  Nd7 {[%clk 0:01:38]} 16. e4 {[%clk 0:01:52]}  Qc7 {[%clk 0:01:34]} 17. Qd2 {[%clk 0:01:23]}  dxe4 {[%clk 0:01:32]} 18. dxe4 {[%clk 0:01:23]}  e5 {[%clk 0:01:32]} 19. Rfd1 {[%clk 0:00:48]}  Rad8 {[%clk 0:01:32]} 20. Qe3 {[%clk 0:00:38]}  Bc8 {[%clk 0:01:31]} 21. h3 {[%clk 0:00:36]}  Rfe8 {[%clk 0:01:28]} 22. Kh2 {[%clk 0:00:35]}  f6 {[%clk 0:01:17]} 23. Rd3 {[%clk 0:00:31]}  Nf8 {[%clk 0:01:17]} 24. Rcd1 {[%clk 0:00:30]}  Rxd3 {[%clk 0:01:17]} 25. Rxd3 {[%clk 0:00:31]}  Be6 {[%clk 0:01:17]} 26. Nh4 {[%clk 0:00:25]}  g6 {[%clk 0:01:17]} 27. Nf3 {[%clk 0:00:23]}  Bf7 {[%clk 0:01:08]} 28. h4 {[%clk 0:00:22]}  Be6 {[%clk 0:01:04]} 29. h5 {[%clk 0:00:21]}  Kg7 {[%clk 0:01:01]} 30. hxg6 {[%clk 0:00:20]}  hxg6 {[%clk 0:01:02]} 31. Bh3 {[%clk 0:00:19]}  Bxh3 {[%clk 0:00:57]} 32. Kxh3 {[%clk 0:00:20]}  Qc8+ {[%clk 0:00:58]} 33. Kg2 {[%clk 0:00:21]}  Qe6 {[%clk 0:00:58]} 34. Rd1 {[%clk 0:00:17]}  Rd8 {[%clk 0:00:54]} 35. Rh1 {[%clk 0:00:17]}  Kf7 {[%clk 0:00:53]} 36. Nc1 {[%clk 0:00:15]}  Ke8 {[%clk 0:00:53]} 37. Nd3 {[%clk 0:00:14]}  Qb3 {[%clk 0:00:51]} 38. Rh8 {[%clk 0:00:11]}  Qxd3 {[%clk 0:00:49]} 39. Qh6 {[%clk 0:00:08]}  Qxe4 {[%clk 0:00:49]} 0-1


[Site "https://www.chess.com"]

[Event "Titled Tuesday Blitz December 27 Late 2022"]
[White "Joubert, Dantelle"]
[Black "Paspuel, Trosky"]
[WhiteFideId "14310813"]
[BlackFideId "3602150"]
[WhiteElo "1566"]
[BlackElo "1721"]
[Result "0-1"]
[Round "02"]
[TimeControl "180+2"]
[Date "2022.12.27"]
[WhiteClock "0:00:02"]
[BlackClock "0:00:34"]

1. d4 {[%clk 0:03:00]}  Nf6 {[%clk 0:02:59]} 2. c4 {[%clk 0:03:00]}  e6 {[%clk 0:03:00]} 3. Nf3 {[%clk 0:02:59]}  d5 {[%clk 0:03:00]} 4. Nc3 {[%clk 0:02:59]}  Bb4 {[%clk 0:03:01]} 5. Bg5 {[%clk 0:02:57]}  h6 {[%clk 0:03:00]} 6. Bxf6 {[%clk 0:02:51]}  Qxf6 {[%clk 0:03:01]} 7. cxd5 {[%clk 0:02:51]}  exd5 {[%clk 0:03:02]} 8. Qb3 {[%clk 0:02:49]}  Qb6 {[%clk 0:02:56]} 9. a3 {[%clk 0:02:25]}  Bxc3+ {[%clk 0:02:44]} 10. Qxc3 {[%clk 0:02:25]}  O-O {[%clk 0:02:31]} 11. Rc1 {[%clk 0:02:19]}  c6 {[%clk 0:02:28]} 12. e3 {[%clk 0:02:18]}  Bf5 {[%clk 0:02:28]} 13. Ne5 {[%clk 0:02:12]}  Re8 {[%clk 0:02:11]} 14. Be2 {[%clk 0:02:11]}  f6 {[%clk 0:01:51]} 15. Nf3 {[%clk 0:02:08]}  Nd7 {[%clk 0:01:49]} 16. O-O {[%clk 0:02:08]}  Nf8 {[%clk 0:01:20]} 17. Rfd1 {[%clk 0:01:26]}  Be4 {[%clk 0:01:19]} 18. Nd2 {[%clk 0:01:24]}  a5 {[%clk 0:01:19]} 19. Nb3 {[%clk 0:01:17]}  Re7 {[%clk 0:01:06]} 20. Nc5 {[%clk 0:01:14]}  Rae8 {[%clk 0:01:02]} 21. Bh5 {[%clk 0:01:11]}  Bg6 {[%clk 0:00:56]} 22. Bf3 {[%clk 0:01:08]}  Ne6 {[%clk 0:00:51]} 23. Qb3 {[%clk 0:00:42]}  Qc7 {[%clk 0:00:47]} 24. Na4 {[%clk 0:00:34]}  Qd6 {[%clk 0:00:42]} 25. Qb6 {[%clk 0:00:30]}  Ng5 {[%clk 0:00:41]} 26. Be2 {[%clk 0:00:27]}  Ne4 {[%clk 0:00:40]} 27. Rf1 {[%clk 0:00:15]}  f5 {[%clk 0:00:39]} 28. b4 {[%clk 0:00:12]}  axb4 {[%clk 0:00:38]} 29. axb4 {[%clk 0:00:13]}  f4 {[%clk 0:00:39]} 30. exf4 {[%clk 0:00:09]}  Qxf4 {[%clk 0:00:40]} 31. Bf3 {[%clk 0:00:09]}  Nd2 {[%clk 0:00:39]} 32. Bxd5+ {[%clk 0:00:02]}  cxd5 {[%clk 0:00:34]} 0-1


[Site "https://www.chess.com"]

[Event "Titled Tuesday Blitz December 27 Late 2022"]
[White "Karacsonyi, Gellert"]
[Black "Pham, Khoi"]
[WhiteFideId "764620"]
[BlackFideId "1054988"]
[WhiteElo "2385"]
[BlackElo "2355"]
[Result "1-0"]
[Round "02"]
[TimeControl "180+2"]
[Date "2022.12.27"]
[WhiteClock "0:02:42"]
[BlackClock "0:01:22"]

1. e4 {[%clk 0:03:00]}  e6 {[%clk 0:02:57]} 2. Nf3 {[%clk 0:03:01]}  d5 {[%clk 0:02:56]} 3. exd5 {[%clk 0:03:01]}  exd5 {[%clk 0:02:57]} 4. d4 {[%clk 0:03:02]}  Bd6 {[%clk 0:02:57]} 5. Bd3 {[%clk 0:03:02]}  Nf6 {[%clk 0:02:57]} 6. O-O {[%clk 0:03:02]}  O-O {[%clk 0:02:58]} 7. h3 {[%clk 0:03:03]}  Nc6 {[%clk 0:02:57]} 8. Bg5 {[%clk 0:03:02]}  h6 {[%clk 0:02:56]} 9. Bh4 {[%clk 0:03:02]}  Re8 {[%clk 0:02:50]} 10. c3 {[%clk 0:03:02]}  Ne7 {[%clk 0:02:48]} 11. Qb3 {[%clk 0:02:59]}  c6 {[%clk 0:02:31]} 12. Bxf6 {[%clk 0:02:58]}  gxf6 {[%clk 0:02:32]} 13. Nbd2 {[%clk 0:02:58]}  Ng6 {[%clk 0:02:32]} 14. Rae1 {[%clk 0:02:57]}  Nf4 {[%clk 0:02:26]} 15. Bb1 {[%clk 0:02:55]}  f5 {[%clk 0:02:02]} 16. Rxe8+ {[%clk 0:02:46]}  Qxe8 {[%clk 0:02:03]} 17. Re1 {[%clk 0:02:46]}  Qf8 {[%clk 0:02:00]} 18. Nf1 {[%clk 0:02:45]}  b6 {[%clk 0:01:58]} 19. Ng3 {[%clk 0:02:44]}  Qg7 {[%clk 0:01:47]} 20. Re8+ {[%clk 0:02:42]}  Kh7 {[%clk 0:01:45]} 21. Rxc8 {[%clk 0:02:42]}  Rxc8 {[%clk 0:01:24]} 22. Bxf5+ {[%clk 0:02:42]}  Kh8 {[%clk 0:01:22]} 23. Bxc8 {[%clk 0:02:42]} 1-0


[Site "https://www.chess.com"]